{"text_format":"3","workbook":"xlsx","n_sheets":1,"sheets":["Blood Pressure & Glucose"],"not_rendered":{"defined_names":9},"read":"whole","date_system":"1900"}

{"sheet":"Blood Pressure & Glucose","index":0,"n_rows":13,"n_cols":11,"rows_kept":13,"merged":[[0,1,4,3],[0,4,0,9],[1,4,1,6],[1,7,1,9],[3,7,4,7],[3,8,4,8],[3,9,4,9]]}
[null,"Πρόγραμμα παρακολούθησης αρτηριακής πίεσης\nκαι γλυκόζης αίματος",null,null,"Προσαρμόστε τις τιμές κλίμακας στα κελιά E2 έως J5, παρακάτω."]
[{"$nulls":4},"ΑΡΤΗΡΙΑΚΗ ΠΙΕΣΗ",null,null,"ΚΛΙΜΑΚΑ ΓΛΥΚΟΖΗΣ"]
[{"$nulls":4},120,"ΣΥΣΤΟΛΙΚΗ",140,70,100,150]
[{"$nulls":4},80,"ΔΙΑΣΤΟΛΙΚΗ",90,"ΧΑΜΗΛΗ","ΚΑΝΟΝΙΚΗ","ΥΨΗΛΗ"]
[{"$nulls":4},"ΠΡΟΣΔΟΚΩΜΕΝΗ ΠΙΕΣΗ",null,"Κλήση ιατρού"]
[null,"Ημερομηνία","Ώρα","Συμβάν","Συστολική","Διαστολική","Καρδιακός ρυθμός","Γλυκόζη","Επίπεδο","Κατάσταση","Σημειώσεις"]
[null,{"$f":"TODAY()","v":"2018-06-28"},"06:00:00","Αφύπνιση",129,79,72,55,{"$f":"ΑρτηριακήΠίεσηΚαιΓλυκόζηΑίματος[[#This Row],[Γλυκόζη]]","v":55},{"$f":"IFERROR(IF(ΑρτηριακήΠίεσηΚαιΓλυκόζηΑίματος[[#This Row],[Επίπεδο]]=0,\"\",IF(ΑρτηριακήΠίεσηΚαιΓλυκόζηΑίματος[[#This Row],[Επίπεδο]]<=ΓΧαμηλή,\"ΧΑΜΗΛΗ\",IF(AND(ΑρτηριακήΠίεσηΚαιΓλυκόζηΑίματος[[#This Row],[Επίπεδο]]>ΓΧαμηλή,ΑρτηριακήΠίεσηΚαιΓλυκόζηΑίματος[[#This Row],[Επίπεδο]]<ΓΥψηλή),\"ΚΑΝΟΝΙΚΗ\",\"ΥΨΗΛΗ\"))), \"\")","v":"ΧΑΜΗΛΗ"}]
[null,{"$f":"TODAY()","v":"2018-06-28"},"07:00:00","Πριν από γεύμα",120,80,74,70,{"$f":"ΑρτηριακήΠίεσηΚαιΓλυκόζηΑίματος[[#This Row],[Γλυκόζη]]","v":70},{"$f":"IFERROR(IF(ΑρτηριακήΠίεσηΚαιΓλυκόζηΑίματος[[#This Row],[Επίπεδο]]=0,\"\",IF(ΑρτηριακήΠίεσηΚαιΓλυκόζηΑίματος[[#This Row],[Επίπεδο]]<=ΓΧαμηλή,\"ΧΑΜΗΛΗ\",IF(AND(ΑρτηριακήΠίεσηΚαιΓλυκόζηΑίματος[[#This Row],[Επίπεδο]]>ΓΧαμηλή,ΑρτηριακήΠίεσηΚαιΓλυκόζηΑίματος[[#This Row],[Επίπεδο]]<ΓΥψηλή),\"ΚΑΝΟΝΙΚΗ\",\"ΥΨΗΛΗ\"))), \"\")","v":"ΧΑΜΗΛΗ"}]
[null,"2018-06-28","09:00:00","Μετά από γεύμα",133,80,75,75,{"$f":"ΑρτηριακήΠίεσηΚαιΓλυκόζηΑίματος[[#This Row],[Γλυκόζη]]","v":75},{"$f":"IFERROR(IF(ΑρτηριακήΠίεσηΚαιΓλυκόζηΑίματος[[#This Row],[Επίπεδο]]=0,\"\",IF(ΑρτηριακήΠίεσηΚαιΓλυκόζηΑίματος[[#This Row],[Επίπεδο]]<=ΓΧαμηλή,\"ΧΑΜΗΛΗ\",IF(AND(ΑρτηριακήΠίεσηΚαιΓλυκόζηΑίματος[[#This Row],[Επίπεδο]]>ΓΧαμηλή,ΑρτηριακήΠίεσηΚαιΓλυκόζηΑίματος[[#This Row],[Επίπεδο]]<ΓΥψηλή),\"ΚΑΝΟΝΙΚΗ\",\"ΥΨΗΛΗ\"))), \"\")","v":"ΚΑΝΟΝΙΚΗ"}]
[null,"2018-06-28","10:00:00","Μόνο αρτηριακή πίεση",143,91,75,190,{"$f":"ΑρτηριακήΠίεσηΚαιΓλυκόζηΑίματος[[#This Row],[Γλυκόζη]]","v":190},{"$f":"IFERROR(IF(ΑρτηριακήΠίεσηΚαιΓλυκόζηΑίματος[[#This Row],[Επίπεδο]]=0,\"\",IF(ΑρτηριακήΠίεσηΚαιΓλυκόζηΑίματος[[#This Row],[Επίπεδο]]<=ΓΧαμηλή,\"ΧΑΜΗΛΗ\",IF(AND(ΑρτηριακήΠίεσηΚαιΓλυκόζηΑίματος[[#This Row],[Επίπεδο]]>ΓΧαμηλή,ΑρτηριακήΠίεσηΚαιΓλυκόζηΑίματος[[#This Row],[Επίπεδο]]<ΓΥψηλή),\"ΚΑΝΟΝΙΚΗ\",\"ΥΨΗΛΗ\"))), \"\")","v":"ΥΨΗΛΗ"}]
[null,"2018-06-28","12:00:00","Πριν από γεύμα",141,84,70,140,{"$f":"ΑρτηριακήΠίεσηΚαιΓλυκόζηΑίματος[[#This Row],[Γλυκόζη]]","v":140},{"$f":"IFERROR(IF(ΑρτηριακήΠίεσηΚαιΓλυκόζηΑίματος[[#This Row],[Επίπεδο]]=0,\"\",IF(ΑρτηριακήΠίεσηΚαιΓλυκόζηΑίματος[[#This Row],[Επίπεδο]]<=ΓΧαμηλή,\"ΧΑΜΗΛΗ\",IF(AND(ΑρτηριακήΠίεσηΚαιΓλυκόζηΑίματος[[#This Row],[Επίπεδο]]>ΓΧαμηλή,ΑρτηριακήΠίεσηΚαιΓλυκόζηΑίματος[[#This Row],[Επίπεδο]]<ΓΥψηλή),\"ΚΑΝΟΝΙΚΗ\",\"ΥΨΗΛΗ\"))), \"\")","v":"ΚΑΝΟΝΙΚΗ"}]
[null,{"$f":"TODAY()","v":"2018-06-28"},"15:00:00","Μετά από γεύμα",132,80,68,90,{"$f":"ΑρτηριακήΠίεσηΚαιΓλυκόζηΑίματος[[#This Row],[Γλυκόζη]]","v":90},{"$f":"IFERROR(IF(ΑρτηριακήΠίεσηΚαιΓλυκόζηΑίματος[[#This Row],[Επίπεδο]]=0,\"\",IF(ΑρτηριακήΠίεσηΚαιΓλυκόζηΑίματος[[#This Row],[Επίπεδο]]<=ΓΧαμηλή,\"ΧΑΜΗΛΗ\",IF(AND(ΑρτηριακήΠίεσηΚαιΓλυκόζηΑίματος[[#This Row],[Επίπεδο]]>ΓΧαμηλή,ΑρτηριακήΠίεσηΚαιΓλυκόζηΑίματος[[#This Row],[Επίπεδο]]<ΓΥψηλή),\"ΚΑΝΟΝΙΚΗ\",\"ΥΨΗΛΗ\"))), \"\")","v":"ΚΑΝΟΝΙΚΗ"},"Λήψη φαρμακευτικής αγωγής αρτηριακής πίεσης με το γεύμα"]
[null,"Μέσοι όροι",null,null,{"$f":"SUBTOTAL(101,ΑρτηριακήΠίεσηΚαιΓλυκόζηΑίματος[Συστολική])","v":133},{"$f":"SUBTOTAL(101,ΑρτηριακήΠίεσηΚαιΓλυκόζηΑίματος[Διαστολική])","v":{"v":82.33333333333333,"d":"82"}},{"$f":"SUBTOTAL(101,ΑρτηριακήΠίεσηΚαιΓλυκόζηΑίματος[Καρδιακός ρυθμός])","v":{"v":72.33333333333333,"d":"72"}},{"$f":"SUBTOTAL(101,ΑρτηριακήΠίεσηΚαιΓλυκόζηΑίματος[Γλυκόζη])","v":{"v":103.33333333333333,"d":"103"}}]